{"text_format":"1","workbook":"xlsx","n_sheets":2,"sheets":["ورقة العمل","تكاليف الدراسة"],"not_rendered":{"charts":0,"images":0,"macros":0,"external_links":0,"defined_names":4,"comments":0,"pivot_tables":0},"unopened":[],"bounds":{"document_bytes":16777216,"sheet_cells":100000,"rows_first":2000,"rows_last":500,"rows_between":2000,"halvings":0,"cell_chars":16384,"cell_head_chars":4096},"cells_cut":0,"cells_raw":0,"read":"whole","date_system":"1900"}

{"sheet":"ورقة العمل","index":0,"n_rows":10,"n_cols":25,"rows_kept":10,"cut":false,"hidden":false,"merged":[]}
[]
[null,"اسم الطالب","رقم التواصل","الحالة","اسم المدرسة","مقيد سابق","منطقة السكن","الصف","رسوم فتح الملف","الرسوم الدراسية","قيمة الكتب","قيمة الزي","اشتراك الباص شهري","اشتراك الباص سنوي"]
[1,"محمد 1",1111111111,"يتيم","التعاون_الحديث","نعم","منطقة السد","ابتدائي",{"$f":"CHOOSE(MATCH($F3,{\"نعم\",\"لا\"},0),0,INDEX(INDIRECT($E3),MATCH(I$2,'تكاليف الدراسة'!$B$4:$B$7,0)+1,MATCH($H3,'تكاليف الدراسة'!$B$3:$G$3,0)))","v":0},{"$f":"INDEX(INDIRECT($E3),MATCH(J$2,'تكاليف الدراسة'!$B$4:$B$7,0)+1,MATCH($H3,'تكاليف الدراسة'!$B$3:$G$3,0))","v":5000},{"$f":"INDEX(INDIRECT($E3),MATCH(K$2,'تكاليف الدراسة'!$B$4:$B$7,0)+1,MATCH($H3,'تكاليف الدراسة'!$B$3:$G$3,0))","v":2000},{"$f":"INDEX(INDIRECT($E3),MATCH(L$2,'تكاليف الدراسة'!$B$4:$B$7,0)+1,MATCH($H3,'تكاليف الدراسة'!$B$3:$G$3,0))","v":600},{"$f":"INDEX(INDIRECT($E3),2,MATCH($G3,'تكاليف الدراسة'!$B$3:$L$3,0))","v":"A2"}]
[2,"محمد 2",1111111112,"حالة اقتصادية","التعاون_القديم","لا","منطقة البالون","ثالث ثانوي",{"$f":"CHOOSE(MATCH($F4,{\"نعم\",\"لا\"},0),0,INDEX(INDIRECT($E4),MATCH(I$2,'تكاليف الدراسة'!$B$4:$B$7,0)+1,MATCH($H4,'تكاليف الدراسة'!$B$3:$G$3,0)))","v":500},{"$f":"INDEX(INDIRECT($E4),MATCH(J$2,'تكاليف الدراسة'!$B$4:$B$7,0)+1,MATCH($H4,'تكاليف الدراسة'!$B$3:$G$3,0))","v":10000},{"$f":"INDEX(INDIRECT($E4),MATCH(K$2,'تكاليف الدراسة'!$B$4:$B$7,0)+1,MATCH($H4,'تكاليف الدراسة'!$B$3:$G$3,0))","v":3300},{"$f":"INDEX(INDIRECT($E4),MATCH(L$2,'تكاليف الدراسة'!$B$4:$B$7,0)+1,MATCH($H4,'تكاليف الدراسة'!$B$3:$G$3,0))","v":3000},{"$f":"INDEX(INDIRECT($E4),2,MATCH($G4,'تكاليف الدراسة'!$B$3:$L$3,0))","v":"B1"},null,null,null,null,null,null,null,null,null,null,null,"نعم"]
[3,"محمد 3",1111111113,"يتيم","المبادرة_القديمة","نعم","منطقة البالون","ابتدائي",{"$f":"CHOOSE(MATCH($F5,{\"نعم\",\"لا\"},0),0,INDEX(INDIRECT($E5),MATCH(I$2,'تكاليف الدراسة'!$B$4:$B$7,0)+1,MATCH($H5,'تكاليف الدراسة'!$B$3:$G$3,0)))","v":0},{"$f":"INDEX(INDIRECT($E5),3,2)","v":500},{"$f":"INDEX(INDIRECT($E5),4,2)","v":300},{"$f":"INDEX(INDIRECT($E5),5,2)","v":100},{"$f":"INDEX(INDIRECT($E5),2,MATCH($G5,'تكاليف الدراسة'!$B$3:$L$3,0))","v":"R1"},null,null,null,null,null,null,null,null,null,null,null,"لا"]
[4,"محمد 4",1111111114,"حالة اقتصادية","التعاون_الحديث","لا","منطقة البالون","كي جي",{"$f":"CHOOSE(MATCH($F6,{\"نعم\",\"لا\"},0),0,INDEX(INDIRECT($E6),MATCH(I$2,'تكاليف الدراسة'!$B$4:$B$7,0)+1,MATCH($H6,'تكاليف الدراسة'!$B$3:$G$3,0)))","v":600},4000,1000,500,{"$f":"INDEX(INDIRECT($E6),2,MATCH($G6,'تكاليف الدراسة'!$B$3:$L$3,0))","v":"A1"}]
[5,"محمد 5",1111111115,"يتيم","التعاون_الحديث","لا","منطقة الجيزة","ابتدائي",{"$f":"CHOOSE(MATCH($F7,{\"نعم\",\"لا\"},0),0,INDEX(INDIRECT($E7),MATCH(I$2,'تكاليف الدراسة'!$B$4:$B$7,0)+1,MATCH($H7,'تكاليف الدراسة'!$B$3:$G$3,0)))","v":600},4000,1000,500,{"$f":"INDEX(INDIRECT($E7),2,MATCH($G7,'تكاليف الدراسة'!$B$3:$L$3,0))","v":"A3"}]
[6,"محمد 6",1111111116,"حالة اقتصادية","التعاون_الحديث","نعم","منطقة السد","كي جي",{"$f":"CHOOSE(MATCH($F8,{\"نعم\",\"لا\"},0),0,INDEX(INDIRECT($E8),MATCH(I$2,'تكاليف الدراسة'!$B$4:$B$7,0)+1,MATCH($H8,'تكاليف الدراسة'!$B$3:$G$3,0)))","v":0},4000,1000,500,{"$f":"INDEX(INDIRECT($E8),2,MATCH($G8,'تكاليف الدراسة'!$B$3:$L$3,0))","v":"A2"}]
[7,"محمد 7",1111111117,"يتيم","التعاون_الحديث","لا","منطقة أكتوبر","ثانوي",{"$f":"CHOOSE(MATCH($F9,{\"نعم\",\"لا\"},0),0,INDEX(INDIRECT($E9),MATCH(I$2,'تكاليف الدراسة'!$B$4:$B$7,0)+1,MATCH($H9,'تكاليف الدراسة'!$B$3:$G$3,0)))","v":600},4000,1000,500,{"$f":"INDEX(INDIRECT($E9),2,MATCH($G9,'تكاليف الدراسة'!$B$3:$L$3,0))","v":"A5"}]
[8,"محمد 8",1111111118,"يتيم","المبادرة_الحديثه","لا","منطقة السد","ثالث ثانوي",{"$f":"CHOOSE(MATCH($F10,{\"نعم\",\"لا\"},0),0,INDEX(INDIRECT($E10),MATCH(I$2,'تكاليف الدراسة'!$B$4:$B$7,0)+1,MATCH($H10,'تكاليف الدراسة'!$B$3:$G$3,0)))","v":400},1000,400,700,{"$f":"INDEX(INDIRECT($E10),2,MATCH($G10,'تكاليف الدراسة'!$B$3:$L$3,0))","v":"M2"}]

{"sheet":"تكاليف الدراسة","index":1,"n_rows":28,"n_cols":21,"rows_kept":28,"cut":false,"hidden":false,"merged":[]}
[]
[]
[null,"التعاون الحديث","كي جي","ابتدائي","اعدادي","ثانوي","ثالث ثانوي","منطقة البالون","منطقة السد","منطقة الجيزة","منطقة فيصل","منطقة أكتوبر",null,null,null,null,"التعاون_الحديث",null,"كي جي",null,"منطقة البالون"]
[null,"رسوم فتح الملف",600,600,600,600,600,"A1","A2","A3","A4","A5",null,null,null,null,"التعاون_القديم",null,"ابتدائي",null,"منطقة السد"]
[null,"الرسوم الدراسية",4000,5000,6000,8000,9000,null,null,null,null,null,null,null,null,null,"المبادرة_الحديثه",null,"اعدادي",null,"منطقة الجيزة"]
[null,"قيمة الكتب",1000,2000,3000,3000,3000,null,null,null,null,null,null,null,null,null,"المبادرة_القديمة",null,"ثانوي",null,"منطقة فيصل"]
[null,"قيمة الزي",500,600,700,800,800,null,null,null,null,null,null,null,null,null,null,null,"ثالث ثانوي",null,"منطقة أكتوبر"]
[]
[]
[null,"التعاون القديم","كي جي","ابتدائي","اعدادي","ثانوي","ثالث ثانوي","منطقة البالون","منطقة السد","منطقة الجيزة","منطقة فيصل","منطقة أكتوبر"]
[null,"رسوم فتح الملف",500,500,500,500,500,"B1","B2","B3","B4","B5"]
[null,"الرسوم الدراسية",6000,7000,8000,9000,10000]
[null,"قيمة الكتب",1200,2200,3300,3300,3300]
[null,"قيمة الزي",2000,2000,3000,3000,3000]
[]
[]
[null,"المبادرة الحديثه","كي جي","ابتدائي","اعدادي","ثانوي","ثالث ثانوي","منطقة البالون","منطقة السد","منطقة الجيزة","منطقة فيصل","منطقة أكتوبر"]
[null,"رسوم فتح الملف",400,400,400,400,400,"M1","M2","M3","M4","M5"]
[null,"الرسوم الدراسية",1000,2000,3000,4000,5000]
[null,"قيمة الكتب",400,500,500,600,600]
[null,"قيمة الزي",700,700,800,800,800]
[]
[]
[null,"المبادرة القديمة","كي جي","ابتدائي","اعدادي","ثانوي","ثالث ثانوي","منطقة البالون","منطقة السد","منطقة الجيزة","منطقة فيصل","منطقة أكتوبر"]
[null,"رسوم فتح الملف",300,300,300,300,300,"R1","R2","R3","R4","R5"]
[null,"الرسوم الدراسية",500,600,700,800,2000]
[null,"قيمة الكتب",300,500,600,600,900]
[null,"قيمة الزي",100,200,400,500,500]